Cogmind - Beta 11.1 @@@ ROGUE MODE // 2022.04.24 @ 17:48:28 Player: Owlsley Result: Destroyed self with Sigix Terminator Performance ------------- Evolutions (8) 4000 Regions Visited (22) 4400 Robots Destroyed (354) 1770 Value Destroyed (18956) 18956 Prototype IDs (21) 420 Alien Tech Used (7) 1400 Bonus (10496) 10496 TOTAL SCORE: 41442 Bonus ------- High Alert Combat Kills 1418 Follower Combat Kills 1720 Entered Garrisons 600 Used RIF Installer 1500 Built Enhanced Grunts 300 Met R17 at Cetus 500 Used Core Reset Matrix 3000 Met Sigix 2000 Friendly Fire -542 Cogmind --------- Core Integrity 0/1450 Matter 214/300 Energy 610/610 System Corruption 23% Temperature Cool (9) Movement Treading (250) Ox1 Location -2/Section 7 Parts ------- > --- POWER (3) -------- Mini Fusion Reactor Light Quantum Reactor > --- PROPULSION (4) --- Advanced Heavy Siege Treads > --- UTILITY (13) ----- Advanced Heat Sink Experimental Coolant Injector Huge Storage Unit Energy Well Enhanced Optical Array Advanced Signal Interpreter Advanced Launcher Guidance Computer Graphene Brace > --- WEAPON (3) ------- Compact HERF Cannon > --- INVENTORY (25) --- Machine Analyzer Enhanced Optical Array Advanced Particle Charger Improved Kinecellerator EM Disruption Field Experimental Hacking Suite Long-range Tractor Beam Dimensional Node Initializer Long-range Proton Cannon Long-range Proton Cannon Compact HERF Cannon Core Cannon Fusion Bomb Launcher Sigix Containment Pod Peak State ------------ > --- POWER ------------ Micro Antimatter Reactor Light Quantum Reactor Reinforced Quantum Reactor > --- PROPULSION ------- Biometal Heavy Treads Experimental Biometal Heavy Treads > --- UTILITY ---------- Advanced Heat Sink Advanced Heat Sink Huge Storage Unit Advanced Energy Well Enhanced Optical Array Advanced Signal Interpreter Advanced Particle Charger Powered Armor Phase Armor Experimental Thermal Shield Experimental Shock Absorption System Advanced Force Field > --- WEAPON ----------- Improved Matter Neutralizer Enhanced Nova Cannon Cooled Nova Cannon > --- INVENTORY -------- Micro Antimatter Reactor Advanced Heavy Siege Treads Advanced Heavy Siege Treads Experimental Coolant Injector Machine Analyzer Enhanced Optical Array Advanced Particle Charger Graphene Brace Advanced EM Disruption Field Improved Force Field Experimental Hacking Suite Long-range Tractor Beam Dimensional Node Initializer Quantum Rifle Compact HERF Cannon Core Cannon Fusion Bomb Launcher Sigix Terminator Sigix Containment Pod [Rating: 211] Favorites ----------- Power Quantum Reactor Engine Heavy Ion Engine Power Core Micro Nuclear Core Reactor Quantum Reactor Propulsion Light Treads Treads Light Treads Leg Carbon-fiber Leg Wheel Compact Wheel Flight Unit VTOL Module Utility Advanced Heat Sink Device Advanced Heat Sink Storage Huge Storage Unit Processor Advanced Targeting Computer Hackware Relay Coupler [NC] Protection Centrium Medium Armor Plating Artifact Phase Armor Weapon Gatling Laser Energy Gun Gatling Laser Energy Cannon Heavy Phase Cannon Ballistic Gun Gauss Rifle Ballistic Cannon Hypervelocity Mass Driver Launcher Heavy Missile Launcher Special Weapon Remote Datajack Impact Weapon Powered Hammer Build | -11 -10 -10 -10 -9 -8 -8 -8 -7 -7 -6 -6 -5 -5 -5 -5 -5 -4 -3 -3 -2 -2 -2 ------- Run | Scr Mat Min Exi Min Mat Gar Mat Fac Gar Fac Gar Fac Ext Cet Arc Hub Fac Res Qua Res Tes Sec Slots Evolved 16 | . . . . . 4 . . 2 . 2 . 2 . . . . 2 2 . 2 . . Power 2 | . . . . . 1 . . . . . . . . . . . . 1 . . . . Propulsion 2 | . . . . . 2 . . . . . . . . . . . . . . . . . Utility 11 | . . . . . 1 . . 2 . 1 . 2 . . . . 2 1 . 2 . . Weapon 1 | . . . . . . . . . . 1 . . . . . . . . . . . . Parts Attached 356 | 3 7 3 1 7 17 9 37 3 9 18 22 16 29 10 8 1 16 17 37 39 21 26 Power 49 | . 1 1 1 1 3 . 8 . . 3 2 1 2 2 . 1 1 3 5 6 3 5 Engine 16 | . 1 . . . 3 . 5 . . 2 1 1 1 . . . . . . 2 . . Core 9 | . . 1 1 1 . . 3 . . 1 1 . 1 . . . . . . . . . Reactor 24 | . . . . . . . . . . . . . . 2 . 1 1 3 5 4 3 5 Propulsion 65 | 2 2 2 . . 6 2 10 . 3 4 9 1 9 2 . . 1 . 4 6 . 2 Treads 44 | 2 1 1 . . 4 2 10 . 3 4 2 . . 2 . . 1 . 4 6 . 2 Leg 16 | . . . . . . . . . . . 6 1 9 . . . . . . . . . Wheel 4 | . 1 1 . . 2 . . . . . . . . . . . . . . . . . Hover . | . . . . . . . . . . . . . . . . . . . . . . . Flight 1 | . . . . . . . . . . . 1 . . . . . . . . . . . Utility 142 | 1 3 . . 2 4 2 5 2 1 6 5 11 7 4 7 . 10 9 19 18 16 10 Device 110 | 1 1 . . 1 3 1 4 1 1 4 4 7 6 4 4 . 9 8 15 14 14 8 Storage 8 | . 2 . . . 1 . 1 . . . . . . . 1 . . 1 1 . . 1 Processor 9 | . . . . . . . . 1 . 2 1 2 . . . . 1 . . . 1 1 Hackware 3 | . . . . . . 1 . . . . . 1 . . . . . . 1 . . . Protection 6 | . . . . 1 . . . . . . . 1 1 . 2 . . . . 1 . . Artifact 6 | . . . . . . . . . . . . . . . . . . . 2 3 1 . Weapon 100 | . 1 . . 4 4 5 14 1 5 5 6 3 11 2 1 . 4 5 9 9 2 9 Energy Gun 24 | . . . . 1 . 2 2 1 3 1 . 1 3 1 1 . . . 2 4 . 2 Energy Cannon 34 | . . . . 1 . 1 2 . 1 3 1 . 5 . . . 1 3 5 3 2 6 Ballistic Gun 21 | . 1 . . 1 3 . 7 . . . 3 1 . 1 . . 2 1 1 . . . Ballistic Cannon 1 | . . . . . . . . . . . . . . . . . . . . 1 . . Launcher 16 | . . . . 1 . 2 2 . 1 1 2 1 2 . . . 1 1 . 1 . 1 Special Weapon 2 | . . . . . . . 1 . . . . . . . . . . . 1 . . . Impact Weapon 2 | . . . . . 1 . . . . . . . 1 . . . . . . . . . Slashing Weapon . | . . . . . . . . . . . . . . . . . . . . . . . Piercing Weapon . | . . . . . . . . . . . . . . . . . . . . . . . Special Melee Weapon . | . . . . . . . . . . . . . . . . . . . . . . . Unidentified Prototypes 23 | . . . . . . . 3 . . . . 1 . 3 2 . 1 1 4 2 6 . Corrupted Parts 2 | . . . . . . . . . . . . . . 1 . 1 . . . . . . System Corruption 14 | . . . . . . . . . . . . . . 5 . 9 . . . . . . Parts Lost 93 | . 2 2 . 2 4 1 5 1 5 10 12 2 10 . . . 4 2 4 4 2 21 Power 14 | . 1 1 . . . . 1 . . 3 1 . 2 . . . . . . 1 . 4 Propulsion 27 | . 1 1 . . 4 1 2 . 3 3 7 1 . . . . . . 1 . . 3 Utility 29 | . . . . 1 . . 1 . 1 1 1 1 4 . . . . 2 1 3 2 11 Weapon 23 | . . . . 1 . . 1 1 1 3 3 . 4 . . . 4 . 2 . . 3 Highest Loss Streak 12 | . 1 1 . 2 1 1 1 1 2 7 4 1 4 . . . 2 1 2 2 1 12 To Critical Strikes 1 | . . . . . . . . . 1 . . . . . . . . . . . . . Average Slot Usage (%) 93 | . 99 98 100 99 95 100 99 92 99 96 93 99 99 89 87 88 88 89 89 85 85 87 Engine 4 | . 13 5 . . 9 9 11 7 7 6 9 5 4 . . . . . . . . . Core 2 | . . 7 14 13 9 9 6 7 7 4 . 5 5 4 . . . . . . . . Reactor 5 | . . . . . . . . . . . . . . 5 11 11 10 14 13 11 12 12 Treads 14 | . 23 13 14 14 17 34 35 30 30 26 4 . . 9 11 11 10 9 8 7 8 8 Leg 3 | . . . . . . . . . . . 13 23 23 4 . . . . . . . . Wheel 1 | . 4 14 14 14 14 1 . . . . . . . . . . . . . . . . Device 20 | . 14 14 14 8 18 16 17 19 22 12 11 21 17 23 22 17 25 29 25 22 24 29 Storage 7 | . 14 14 14 14 9 9 9 7 7 6 6 5 5 5 5 5 5 4 7 8 8 7 Processor 10 | . . . . . . . . 3 7 20 21 17 17 17 17 17 15 14 14 13 10 13 Protection 1 | . . . . 4 . . . . . . . . 4 . . 5 5 3 . . 4 1 Energy Gun 6 | . . . . 3 9 15 9 11 14 13 . 3 10 10 11 11 7 . 4 3 . 1 Energy Cannon 5 | . . . . 8 . 1 . . . 2 12 6 4 5 5 5 4 9 8 7 12 11 Ballistic Gun 4 | . 28 28 28 16 8 . 8 3 . . 4 5 . . . . 2 3 . . . . Naked Turns . | . . . . . . . . . . . . . . . . . . . . . . . Heaviest Build 251 | 13 90 90 90 98 106 109 113 111 111 125 122 122 124 147 152 152 163 190 190 240 251 212 Greatest Support 165 | 40 40 16 16 16 32 82 82 82 82 82 80 60 85 160 160 160 160 160 160 160 160 165 Greatest Overweight (x) 8 | . 2 5 5 6 6 6 1 1 1 1 8 2 2 1 . . 1 1 1 3 1 1 Average Overweight (x) 1 | . . 5 5 5 4 1 1 1 1 1 2 1 1 . . . . 1 . 1 1 . Largest Inventory Capacity 25 | 8 25 25 25 25 25 25 25 25 25 25 25 25 25 25 25 25 25 25 25 25 25 25 Average Capacity 24 | 8 16 25 25 25 25 25 25 25 25 25 25 25 25 25 25 25 25 25 25 25 25 25 Most Carried 25 | 6 24 25 25 25 25 25 25 25 25 25 25 25 25 25 25 25 25 25 25 25 25 25 Average Carried 23 | 6 15 24 24 24 24 24 24 24 24 23 24 24 24 23 25 24 24 24 24 24 24 23 Final Capacity 25 | 8 25 25 25 25 25 25 25 25 25 25 25 25 25 25 25 25 25 25 25 25 25 25 Final Carried 25 | 6 24 25 24 25 25 25 25 25 23 25 25 25 23 25 25 25 25 24 25 25 25 16 Class Distribution -------------------- 28% | Scavenger-Tank 23% | Scavenger-Mutant 18% | Scavenger-Skirmisher 15% | Mutant 12% | Scavenger-Gunner Dominant Class ---------------- Mutant | -10/Materials Mutant | -10/Mines Mutant | -10/Exiles Mutant | -9/Mines Scavenger-Mutant | -8/Materials Scavenger-Mutant | -8/Garrison Scavenger-Mutant | -8/Materials Mutant | -7/Factory Mutant | -7/Garrison Scavenger-Skirmisher | -6/Factory Scavenger-Gunner | -6/Garrison Scavenger-Skirmisher | -5/Factory Scavenger-Tank | -5/Extension Scavenger-Gunner | -5/Cetus Scavenger-Gunner | -5/Archives Scavenger-Skirmisher | -5/Hub_04(d) Scavenger-Skirmisher | -4/Factory Scavenger-Tank | -3/Research Scavenger-Skirmisher | -3/Quarantine Scavenger-Tank | -2/Research Scavenger-Tank | -2/Testing Scavenger-Tank | -2/Section 7 Resources | -11 -10 -10 -10 -9 -8 -8 -8 -7 -7 -6 -6 -5 -5 -5 -5 -5 -4 -3 -3 -2 -2 -2 ----------- Run | Scr Mat Min Exi Min Mat Gar Mat Fac Gar Fac Gar Fac Ext Cet Arc Hub Fac Res Qua Res Tes Sec Matter Collected 6153 | 228 438 140 200 139 531 107 739 68 130 219 437 110 413 105 51 63 219 365 519 419 334 179 Remotely . | . . . . . . . . . . . . . . . . . . . . . . . Salvage Created 17018 | 101 719 179 . 144 1070 340 1609 186 546 526 758 303 1555 270 501 136 639 975 1973 2091 807 1590 Parts 765 | 5 42 16 . 13 40 12 104 7 24 19 36 11 64 7 19 2 29 46 100 63 57 49 Haulers Intercepted 7 | . 2 . . . . . 4 . . . . . . . . . . . . . . 1 Recyclers Shooed 2 | . . . . . 1 . 1 . . . . . . . . . . . . . . . Parts Field Recycled . | . . . . . . . . . . . . . . . . . . . . . . . Retrieved Matter . | . . . . . . . . . . . . . . . . . . . . . . . Parts Self-Destructed . | . . . . . . . . . . . . . . . . . . . . . . . Prevented . | . . . . . . . . . . . . . . . . . . . . . . . Kills | -11 -10 -10 -10 -9 -8 -8 -8 -7 -7 -6 -6 -5 -5 -5 -5 -5 -4 -3 -3 -2 -2 -2 ------- Run | Scr Mat Min Exi Min Mat Gar Mat Fac Gar Fac Gar Fac Ext Cet Arc Hub Fac Res Qua Res Tes Sec Combat Hostiles Destroyed 298 | . 11 7 . 7 16 12 37 6 15 10 25 6 24 4 4 2 10 12 30 24 14 22 Guns 140 | . 11 7 . 1 16 7 29 5 15 3 3 5 12 1 1 1 6 2 9 5 . 1 Cannons 104 | . . . . 2 . . 3 . . 5 11 . 6 2 2 1 2 10 19 16 13 12 AOE 36 | . . . . 4 . 5 5 . . 1 11 1 3 . . . 2 . . . . 4 Classes Destroyed 21 | 2 4 1 . . 2 1 3 . 1 1 . . 1 . . . . 3 1 . 1 . Worker 8 | . . . . . . . 5 . . . . . 3 . . . . . . . . . Builder 3 | . 1 . . . . . 1 . . . . . . . . . . . . . . 1 Tunneler 3 | 1 . . . . . . 1 . . . . . 1 . . . . . . . . . Hauler 7 | . 2 . . . . . 4 . . . . . . . . . . . . . . 1 Recycler 6 | 1 1 . . . 2 . . . . . . . 1 . . . . . . 1 . . Mechanic 1 | . . . . . . . . . . . . . . . . . . 1 . . . . Operator 9 | . . . . . . . . . . 1 . . 1 . 6 . . . . 1 . . Watcher 17 | . 2 . . . 3 . 3 . . . . . 1 1 . 1 2 1 1 . 1 1 Swarmer 52 | . . 5 . 4 . . 7 3 6 . 14 . 5 . . . . . 3 . 5 . Grunt 115 | . 11 2 . 3 9 10 14 3 3 5 9 6 8 . . 2 4 4 10 8 . 4 Brawler 3 | . . . . . . 1 1 . . . . . . . . . . . . 1 . . Duelist 3 | . . . . . . . 2 . . . . . . . . . . . . . . 1 Protector 2 | . . . . . . . 2 . . . . . . . . . . . . . . . Sentry 41 | . . . . . 5 1 9 . 4 2 1 . 7 . 4 . . 1 . 3 . 4 Demolisher 2 | . . . . . . . . . . . . . . . . . . . . . 2 . Specialist 3 | . . . . . . . . . . . . . . . . . . 1 . . . 2 Hunter 24 | . . . . . 2 . 2 . 1 2 . . 1 . . . 2 2 2 2 . 8 Programmer 44 | . . . . . . . . . 1 1 1 . 1 . . . 4 3 14 10 7 2 Heavy 2 | . . . . . . . . . . . . . . . . . . 1 . . . 1 Behemoth 2 | . . . . . . . . . . . . . 2 . . . . . . . . . Cetus Guard 4 | . . . . . . . . . . . . . . 4 . . . . . . . . Alpha 7 1 | . . . . . . . . . . . . . . . . . . . 1 . . . Thug 1 | . . . . . . . . . . . . . 1 . . . . . . . . . Butcher 1 | . . . . . . . . . . . . . 1 . . . . . . . . . Best Kill Streak 11 | 2 4 3 . 4 5 3 6 6 5 3 11 3 7 4 5 1 4 4 4 4 5 6 Combat Bots Only 11 | . 2 3 . 4 4 3 5 6 5 3 11 3 6 3 4 1 4 4 4 4 5 5 Max Kills in Single Turn 4 | 1 1 1 . 4 1 2 2 1 2 1 3 1 3 1 1 1 2 2 1 2 2 4 Gunslinging 1 | . . . . . . . . . 1 . . . . . . . . . . . . . Exploded 4 | . . . . 4 . 2 2 . . 1 3 1 2 . . . 1 . . . . 3 Melee . | . . . . . . . . . . . . . . . . . . . . . . . Uniques/NPCs Destroyed . | . . . . . . . . . . . . . . . . . . . . . . . Combat | -11 -10 -10 -10 -9 -8 -8 -8 -7 -7 -6 -6 -5 -5 -5 -5 -5 -4 -3 -3 -2 -2 -2 -------- Run | Scr Mat Min Exi Min Mat Gar Mat Fac Gar Fac Gar Fac Ext Cet Arc Hub Fac Res Qua Res Tes Sec Damage Taken 22481 | . 664 241 . 257 794 312 1394 270 948 1239 1270 372 1516 228 . 101 1239 1115 1830 3037 907 4747 Core 3161 | . 121 33 . 32 138 28 161 37 87 48 188 55 212 39 . . 109 44 240 1029 90 470 Absorbed by Shields 8242 | . . . . . 304 119 476 100 748 200 . 109 547 23 . . 258 1037 1202 1263 969 887 Redirected to Core 1005 | . . . . . . . . . . . . . . . . . . . 66 904 35 . Redirected to Shielding 104 | . . . . . . . . . . . . . 104 . . . . . . . . . Regen/Repaired (Parts) 189 | . . . . . . . 189 . . . . . . . . . . . . . . . Core Remaining (%) 68 | 100 . . . 25 . . 40 . 82 . 72 . . . . 69 90 . 73 . . . Volleys Fired 868 | 3 77 18 . 11 58 24 111 11 27 23 44 12 60 12 64 12 30 40 86 62 34 49 Largest 3 | 2 2 2 . 2 2 2 2 2 2 3 3 3 3 3 3 3 3 3 3 3 3 3 Hottest 327 | 40 40 40 . 140 108 145 121 160 160 250 250 208 275 271 271 284 284 289 297 304 304 327 Shots Fired 2003 | 6 153 36 . 22 112 38 204 21 51 64 109 34 161 35 84 30 74 119 248 183 81 138 Gun 1144 | 6 153 36 . 14 112 29 185 21 49 30 27 24 108 22 70 18 44 34 88 60 1 13 Cannon 818 | . . . . 7 . 1 8 . 1 31 73 7 51 13 14 12 29 85 159 123 80 124 Launcher 38 | . . . . 1 . 8 9 . 1 3 9 3 2 . . . 1 . . . . 1 Special 3 | . . . . . . . 2 . . . . . . . . . . . 1 . . . Kinetic 439 | 6 153 36 . 12 56 . 78 5 . . 26 12 . . . . 12 34 9 . . . Thermal 1487 | . . . . 9 56 30 107 16 50 61 74 19 144 35 84 30 61 80 233 183 81 134 Explosive 37 | . . . . 1 . 8 9 . 1 3 9 3 2 . . . 1 . . . . . Electromagnetic 37 | . . . . . . . 8 . . . . . 15 . . . . 5 5 . . 4 Robot Hit Streak 36 | 3 12 10 . 7 22 20 18 12 36 19 13 7 22 10 9 7 12 27 20 19 6 10 Robot Miss Streak 11 | 2 4 5 . 1 6 4 9 3 5 6 4 3 5 2 6 6 11 4 4 3 3 3 Penetration Max 1 | . . . . . 1 . 1 . . . . . . . . . . 1 . . . . Secondary Targets 8 | . 1 1 . . . 2 1 1 2 . . . . . . . . . . . . . Max Gunslinging Chain 1 | . 1 1 . . . 1 1 1 1 . . . . . . . . . . . . . Shots Hit Robots 1422 | 3 96 21 . 17 93 34 172 20 46 54 65 31 124 29 53 21 43 88 156 133 36 87 Core Hits 778 | 3 34 10 . 8 54 45 146 12 38 32 36 20 80 16 27 9 28 29 58 46 15 32 Critical Kills 14 | . . . . . . . . . . . 1 1 . . 1 . . . 2 2 2 5 Critical Parts Destroyed 11 | . . . . . 1 . 3 . . . . 3 . . . . . 2 2 . . . Critical Strikes 40 | . . . . . 1 . 3 . . . 1 4 3 . 3 . . 2 5 11 2 5 Burn 15 | . . . . . . . . . . . . . 3 . 2 . . . 1 9 . . Meltdown 12 | . . . . . . . . . . . . . . . 1 . . . 2 2 2 5 Destroy 13 | . . . . . 1 . 3 . . . 1 4 . . . . . 2 2 . . . Melee Attacks 3 | . . . . . 2 . . . . . . . 1 . . . . . . . . . Impact 3 | . . . . . 2 . . . . . . . 1 . . . . . . . . . Slashing . | . . . . . . . . . . . . . . . . . . . . . . . Piercing . | . . . . . . . . . . . . . . . . . . . . . . . Sneak Attacks . | . . . . . . . . . . . . . . . . . . . . . . . Combat Hostiles . | . . . . . . . . . . . . . . . . . . . . . . . Follow-up Attacks . | . . . . . . . . . . . . . . . . . . . . . . . Damage Inflicted 51628 | 35 1255 278 . 409 2064 1163 4031 491 1024 1550 3606 830 4346 1103 1456 618 1891 3131 5872 5787 2221 8467 Guns 20876 | 35 1254 275 . 147 1906 524 3008 491 1024 640 334 521 2847 686 1176 310 1125 624 1941 1841 . 167 Cannons 21691 | . . . . 87 . . 115 . . 736 1360 132 998 417 280 308 435 2507 3931 3946 2221 4218 Explosions 9000 | . . . . 175 101 639 908 . . 174 1912 177 501 . . . 331 . . . . 4082 Melee 57 | . . . . . 57 . . . . . . . . . . . . . . . . . Ramming 4 | . 1 3 . . . . . . . . . . . . . . . . . . . . Kinetic 4992 | 35 1254 275 . 112 752 . 1165 96 . . 302 161 . . . . 179 624 37 . . . Thermal 41109 | . . . . 122 1154 524 1843 395 1024 1376 1392 492 3738 1103 1456 618 1491 2423 5727 5787 2221 8223 Explosive 4838 | . . . . 175 101 639 908 . . 174 1912 177 419 . . . 221 . . . . 112 Electromagnetic 628 | . . . . . . . 115 . . . . . 189 . . . . 84 108 . . 132 Impact 57 | . . . . . 57 . . . . . . . . . . . . . . . . . Slashing . | . . . . . . . . . . . . . . . . . . . . . . . Piercing . | . . . . . . . . . . . . . . . . . . . . . . . Highest Corruption 23 | . 6 6 6 6 . . . . . . . . 1 6 6 9 9 5 20 13 19 23 Average Corruption 9 | . 3 6 6 6 . . . . . . . . 1 5 4 9 7 2 11 9 16 19 Corruption Purged 6 | . . . . . . . . . . . . . . . 6 . . . . . . . Corruption Blocked . | . . . . . . . . . . . . . . . . . . . . . . . Effects 322 | . 22 9 7 16 . . . . . . . . 1 6 7 . 22 11 93 34 52 42 Message Errors 76 | . 4 2 . 3 . . . . . . . . . 1 2 . 6 3 20 7 17 11 Matter Fused 76 | . 8 2 2 2 . . . . . . . . . 2 2 . 5 5 18 7 12 11 Heat Flow Errors 47 | . 3 . 2 2 . . . . . . . . . . . . 3 2 15 5 7 8 Energy Discharges 30 | . 2 1 . 2 . . . . . . . . . 1 1 . 2 . 9 4 4 4 Parts Rejected 10 | . . . . . . . . . . . . . . . . . 2 . 4 1 2 1 Data Loss (minor) 32 | . 4 2 3 2 . . . . . . . . 1 1 2 . 2 . 8 3 2 2 Data Loss (major) 11 | . . 1 . 2 . . . . . . . . . . . . 2 . 6 . . . Misfires 10 | . . . . 1 . . . . . . . . . 1 . . . 1 2 3 2 . Alerts 19 | . . 1 . 2 . . . . . . . . . . . . . . 9 2 3 2 Misdirections 1 | . . . . . . . . . . . . . . . . . . . . . 1 . Weapon Failures 10 | . 1 . . . . . . . . . . . . . . . . . 2 2 2 3 Overload Shots . | . . . . . . . . . . . . . . . . . . . . . . . Overflow Damage 2180 | . . . . . . 1 14 . . . 265 . 41 . 4 . 114 47 205 348 152 989 Projectiles 965 | . . . . . . . . . . . 48 . 9 . 4 . 26 47 205 348 152 126 Explosions 1215 | . . . . . . 1 14 . . . 217 . 32 . . . 88 . . . . 863 Melee . | . . . . . . . . . . . . . . . . . . . . . . . Knockbacks . | . . . . . . . . . . . . . . . . . . . . . . . Impact . | . . . . . . . . . . . . . . . . . . . . . . . Kinetic . | . . . . . . . . . . . . . . . . . . . . . . . Secondary . | . . . . . . . . . . . . . . . . . . . . . . . Self-Inflicted Damage 1645 | . . 1 . 29 45 51 144 . 47 4 183 . . . . . 124 . . . . 1017 Shots 22 | . . . . 1 1 2 8 . 1 1 4 . . . . . 2 . . . . 2 Rammed 3 | . 1 1 . . . . . . . . . . . . . . 1 . . . . . Targets Rammed 3 | . 1 1 . . . . . . . . . . . . . . 1 . . . . . Kicked . | . . . . . . . . . . . . . . . . . . . . . . . Crushed . | . . . . . . . . . . . . . . . . . . . . . . . Highest Temperature 550 | . 251 4 238 242 296 207 48 . 137 414 466 96 246 524 224 198 446 298 183 550 471 252 Average Temperature 98 | . 81 2 99 76 59 60 10 . 75 140 116 34 76 158 111 99 113 59 27 123 195 81 Received Heat Transfer 3820 | . 387 84 . 108 365 144 441 36 235 285 354 115 285 13 . 36 45 87 289 86 24 401 Effects 30 | . . . . . 2 . . . . 6 4 . . 2 . . 1 . . 2 13 . Shutdowns 15 | . . . . . . . . . . 2 2 . . 1 . . . . . 2 8 . Energy Bleed 3 | . . . . . . . . . . 1 . . . . . . . . . . 2 . Interference 8 | . . . . . 2 . . . . 3 2 . . . . . . . . . 1 . Short Circuit 2 | . . . . . . . . . . . . . . . . . 1 . . . 1 . Damage (minor) 2 | . . . . . . . . . . . . . . 1 . . . . . . 1 . Siege Activations . | . . . . . . . . . . . . . . . . . . . . . . . Robots Corrupted . | . . . . . . . . . . . . . . . . . . . . . . . Combat Hostiles . | . . . . . . . . . . . . . . . . . . . . . . . Parts Fried 2 | . . . . . . . . . . . . . . . . . . 1 1 . . . Impact Corruptions . | . . . . . . . . . . . . . . . . . . . . . . . Robots Melted 20 | . . . . . . . . 1 . 1 . . 3 1 2 . . . 2 3 2 5 Combat Hostiles 18 | . . . . . . . . 1 . 1 . . 3 1 1 . . . 2 3 1 5 Parts Melted 115 | . . . . . 7 2 1 . 8 6 4 . 15 4 8 . . 4 7 26 7 16 Heat Transferred 46992 | . . . . 260 2625 955 3295 875 2300 2313 1894 850 6640 1509 2466 935 1501 2405 5772 5846 1406 3145 Parts Sabotaged . | . . . . . . . . . . . . . . . . . . . . . . . Parts Stolen . | . . . . . . . . . . . . . . . . . . . . . . . Parts Stripped . | . . . . . . . . . . . . . . . . . . . . . . . Power Chain Reactions 1 | . . . . . . . . . . . . . 1 . . . . . . . . . Missiles Intercepted . | . . . . . . . . . . . . . . . . . . . . . . . Alert | -11 -10 -10 -10 -9 -8 -8 -8 -7 -7 -6 -6 -5 -5 -5 -5 -5 -4 -3 -3 -2 -2 -2 ------- Run | Scr Mat Min Exi Min Mat Gar Mat Fac Gar Fac Gar Fac Ext Cet Arc Hub Fac Res Qua Res Tes Sec Peak Influence 1011 | 10 159 179 . 149 340 592 1011 580 838 444 855 467 785 790 572 322 341 241 400 329 339 559 Initial 448 | . 6 14 . . 7 221 288 448 406 439 147 448 137 439 316 . 143 81 135 225 54 144 Average 275 | 8 58 100 . 87 51 439 542 512 584 204 621 313 147 636 244 229 174 95 190 206 171 404 Maximum Alert Level 3 | . . . . . 1 2 3 2 3 2 3 2 3 3 2 1 1 1 2 1 1 2 Low Security (%) 47 | 100 100 100 . 100 94 . . . . 58 12 32 68 . 42 39 57 91 56 52 58 7 Level 1 29 | . . . . . 5 41 40 . . 24 15 29 28 . 39 60 42 8 43 47 41 31 Level 2 15 | . . . . . . 58 30 100 74 17 8 37 1 90 18 . . . . . . 61 Level 3 8 | . . . . . . . 29 . 25 . 63 . 1 9 . . . . . . . . Level 4 . | . . . . . . . . . . . . . . . . . . . . . . . Level 5 . | . . . . . . . . . . . . . . . . . . . . . . . High Security . | . . . . . . . . . . . . . . . . . . . . . . . Max Security . | . . . . . . . . . . . . . . . . . . . . . . . Squads Dispatched 54 | . 1 . . 1 3 . 5 2 . 5 . 1 3 . . 3 4 3 7 9 3 4 Investigation 5 | . . . . 1 . . 1 . . 1 . . 2 . . . . . . . . . Extermination 17 | . . . . . . . . . . . . . . . . 1 3 1 5 3 3 1 Reinforcement 25 | . 1 . . . 2 . 2 1 . 1 . 1 1 . . 2 1 2 2 6 . 3 Assault 2 | . . . . . . . 2 . . . . . . . . . . . . . . . Garrison 5 | . . . . . 1 . . 1 . 3 . . . . . . . . . . . . Intercept . | . . . . . . . . . . . . . . . . . . . . . . . Searches Triggered . | . . . . . . . . . . . . . . . . . . . . . . . Construction Impeded 2 | . . . . . . . . . . 1 . 1 . . . . . . . . . . Haulers Reinforced 1 | . . . . . . . . . . . . . . . . . . . . 1 . . Active Scanning Responses . | . . . . . . . . . . . . . . . . . . . . . . . Cargo Convoy Interrupts . | . . . . . . . . . . . . . . . . . . . . . . . Stealth | -11 -10 -10 -10 -9 -8 -8 -8 -7 -7 -6 -6 -5 -5 -5 -5 -5 -4 -3 -3 -2 -2 -2 --------- Run | Scr Mat Min Exi Min Mat Gar Mat Fac Gar Fac Gar Fac Ext Cet Arc Hub Fac Res Qua Res Tes Sec Distress Signals 24 | . 5 . . . 1 . 3 1 . . . . 1 2 . . . . 3 4 . 4 Communications Jammed . | . . . . . . . . . . . . . . . . . . . . . . . Distress Signals . | . . . . . . . . . . . . . . . . . . . . . . . Times Spotted 473 | . 23 8 . 8 33 12 54 7 16 10 25 8 44 12 26 12 18 15 50 31 22 39 Peak Tracking Total 9 | . 4 3 . 4 8 3 6 4 5 3 5 3 7 5 1 4 4 4 4 4 5 9 Tactical Retreats 21 | . 1 1 . 1 3 1 1 . 1 . 3 1 2 . . . . . 1 1 2 2 Traps | -11 -10 -10 -10 -9 -8 -8 -8 -7 -7 -6 -6 -5 -5 -5 -5 -5 -4 -3 -3 -2 -2 -2 ------- Run | Scr Mat Min Exi Min Mat Gar Mat Fac Gar Fac Gar Fac Ext Cet Arc Hub Fac Res Qua Res Tes Sec Traps Triggered 34 | . 5 . . . . 2 . . 5 1 5 1 7 . . . 1 . 1 5 . 1 Indirectly 1 | . . . . . . . . . . 1 . . . . . . . . . . . . Trap Hack Attempts . | . . . . . . . . . . . . . . . . . . . . . . . Triggered . | . . . . . . . . . . . . . . . . . . . . . . . Disarmed . | . . . . . . . . . . . . . . . . . . . . . . . Reprogrammed . | . . . . . . . . . . . . . . . . . . . . . . . Reused . | . . . . . . . . . . . . . . . . . . . . . . . Traps Extracted . | . . . . . . . . . . . . . . . . . . . . . . . Installed . | . . . . . . . . . . . . . . . . . . . . . . . Triggered . | . . . . . . . . . . . . . . . . . . . . . . . Machines | -11 -10 -10 -10 -9 -8 -8 -8 -7 -7 -6 -6 -5 -5 -5 -5 -5 -4 -3 -3 -2 -2 -2 ---------- Run | Scr Mat Min Exi Min Mat Gar Mat Fac Gar Fac Gar Fac Ext Cet Arc Hub Fac Res Qua Res Tes Sec Machines Disabled 38 | . 1 . . . 2 1 2 . 2 1 3 . 1 . 3 1 3 . 7 1 4 6 Max in Single Turn 3 | . 1 . . . 1 1 1 . 1 1 1 . 1 . 2 1 3 . 1 1 1 2 Garrison Access 4 | . . . . . . . . . . . . . . . . 1 . 1 1 1 . . Garrison Relay 5 | . . . . . . 1 . . 2 . 2 . . . . . . . . . . . Machines Sabotaged . | . . . . . . . . . . . . . . . . . . . . . . . Garrisons Compromised . | . . . . . . . . . . . . . . . . . . . . . . . Overloaded Fab Kills . | . . . . . . . . . . . . . . . . . . . . . . . Hacking | -11 -10 -10 -10 -9 -8 -8 -8 -7 -7 -6 -6 -5 -5 -5 -5 -5 -4 -3 -3 -2 -2 -2 --------- Run | Scr Mat Min Exi Min Mat Gar Mat Fac Gar Fac Gar Fac Ext Cet Arc Hub Fac Res Qua Res Tes Sec Machines Accessed 66 | . 5 . . 1 6 . 10 1 . 5 . 4 8 . . 2 3 4 10 3 1 3 Terminals 49 | . 4 . . . 5 . 7 . . 2 . 4 8 . . 1 2 2 8 2 1 3 Fabricators 3 | . . . . . . . . . . 2 . . . . . . 1 . . . . . Repair Stations 3 | . . . . . . . 2 . . . . . . . . . . 1 . . . . Recycling Units 2 | . 1 . . . . . 1 . . . . . . . . . . . . . . . Scanalyzers 1 | . . . . . . . . . . . . . . . . . . . 1 . . . Garrison Access 7 | . . . . . 1 . . 1 . 1 . . . . . 1 . 1 1 1 . . Total Hacks 148 | . 13 . . 1 20 . 34 1 . 8 . 8 20 . . 4 5 10 12 6 3 3 Successful 75 | . 5 . . 1 11 . 17 1 . 4 . 4 13 . . 3 1 5 5 3 2 . Failed 73 | . 8 . . . 9 . 17 . . 4 . 4 7 . . 1 4 5 7 3 1 3 Catastrophic 13 | . 1 . . . . . 4 . . 1 . 1 . . . . 1 . 3 1 . 1 Database Lockouts . | . . . . . . . . . . . . . . . . . . . . . . . Manual 73 | . 7 . . . 17 . 18 . . 1 . 4 5 1 . . 1 5 5 5 3 1 Terminals 116 | . 9 . . . 19 . 21 . . 4 . 8 20 . . 3 4 7 10 5 3 3 Fabricators 4 | . . . . . . . . . . 3 . . . . . . 1 . . . . . Repair Stations 11 | . . . . . . . 9 . . . . . . . . . . 2 . . . . Recycling Units 8 | . 4 . . . . . 4 . . . . . . . . . . . . . . . Scanalyzers 1 | . . . . . . . . . . . . . . . . . . . 1 . . . Garrison Access 7 | . . . . . 1 . . 1 . 1 . . . . . 1 . 1 1 1 . . Terminal Hacks 38 | . 1 . . 1 6 . 5 . . 2 . 3 10 . . 2 1 2 3 2 . . Record 2 | . . . . . . . . . . . . . 1 . . . . . 1 . . . Part Schematic 1 | . . . . . . . . . . . . . . . . 1 . . . . . . Robot Analysis 4 | . . . . . . . 1 . . . . . 3 . . . . . . . . . Open Door 8 | . . . . 1 . . . . . . . 1 3 . . . . 1 2 . . . Level Access Points 1 | . . . . . . . . . . . . . . . . . 1 . . . . . Branch Access Points 3 | . . . . . . . 1 . . . . 1 . . . . . . . 1 . . Machine Index 1 | . 1 . . . . . . . . . . . . . . . . . . . . . Terminal Index 3 | . . . . . 1 . . . . 1 . . . . . . . 1 . . . . Garrison Index 2 | . . . . . 1 . 1 . . . . . . . . . . . . . . . Unreport Threat 8 | . . . . . 3 . . . . 1 . 1 2 . . . . . . 1 . . Locate Traps 1 | . . . . . . . 1 . . . . . . . . . . . . . . . Recall Investigation 1 | . . . . . . . . . . . . . 1 . . . . . . . . . Recall Reinforcements 2 | . . . . . 1 . 1 . . . . . . . . . . . . . . . Zone Layout 1 | . . . . . . . . . . . . . . . . 1 . . . . . . Fabricator Hacks 1 | . . . . . . . . . . 1 . . . . . . . . . . . . Build 1 | . . . . . . . . . . 1 . . . . . . . . . . . . Repair Station Hacks 7 | . . . . . . . 6 . . . . . . . . . . 1 . . . . Scan Component 4 | . . . . . . . 3 . . . . . . . . . . 1 . . . . Repair 3 | . . . . . . . 3 . . . . . . . . . . . . . . . Recycling Unit Hacks 2 | . 1 . . . . . 1 . . . . . . . . . . . . . . . Retrieve Components 2 | . 1 . . . . . 1 . . . . . . . . . . . . . . . Scanalyzer . | . . . . . . . . . . . . . . . . . . . . . . . Garrison Access Hacks 7 | . . . . . 1 . . 1 . 1 . . . . . 1 . 1 1 1 . . Unlock Access 3 | . . . . . 1 . . 1 . 1 . . . . . . . . . . . . Seal Access 4 | . . . . . . . . . . . . . . . . 1 . 1 1 1 . . Unauthorized Hacks 20 | . 3 . . . 4 . 5 . . . . 1 3 . . . . 1 1 . 2 . Terminals 17 | . 2 . . . 4 . 4 . . . . 1 3 . . . . 1 . . 2 . Track 2 | . . . . . . . 1 . . . . . . . . . . . . . 1 . Assimilate 1 | . 1 . . . . . . . . . . . . . . . . . . . . . Botnet 9 | . 1 . . . 3 . 1 . . . . . 2 . . . . 1 . . 1 . Disrupt 1 | . . . . . . . 1 . . . . . . . . . . . . . . . Operators 4 | . . . . . 1 . 1 . . . . 1 1 . . . . . . . . . Fabricators . | . . . . . . . . . . . . . . . . . . . . . . . Repair Stations . | . . . . . . . . . . . . . . . . . . . . . . . Recycling Units 2 | . 1 . . . . . 1 . . . . . . . . . . . . . . . Mask 2 | . 1 . . . . . 1 . . . . . . . . . . . . . . . Scanalyzers 1 | . . . . . . . . . . . . . . . . . . . 1 . . . Researchers 1 | . . . . . . . . . . . . . . . . . . . 1 . . . Garrison Access . | . . . . . . . . . . . . . . . . . . . . . . . Data Cores Recovered . | . . . . . . . . . . . . . . . . . . . . . . . Used . | . . . . . . . . . . . . . . . . . . . . . . . Hacking Detections 52 | . 5 . . . 5 . 9 1 . 4 . 3 5 . . 1 3 3 7 2 1 3 Full Trace Events 3 | . . . . . . . 1 . . 1 . . 1 . . . . . . . . . Feedback Events . | . . . . . . . . . . . . . . . . . . . . . . . Feedback Blocked . | . . . . . . . . . . . . . . . . . . . . . . . Robot Schematics Acquired . | . . . . . . . . . . . . . . . . . . . . . . . Robots Built . | . . . . . . . . . . . . . . . . . . . . . . . Authchips . | . . . . . . . . . . . . . . . . . . . . . . . Time . | . . . . . . . . . . . . . . . . . . . . . . . Total Robot Build Rating . | . . . . . . . . . . . . . . . . . . . . . . . Part Schematics Acquired 1 | . . . . . . . . . . . . . . . . 1 . . . . . . Parts Built 1 | . . . . . . . . . . 1 . . . . . . . . . . . . Authchips . | . . . . . . . . . . . . . . . . . . . . . . . Time 128 | . . . . . . . . . . 128 . . . . . . . . . . . . Total Part Build Rating 8 | . . . . . . . . . . 8 . . . . . . . . . . . . Parts Repaired 3 | . . . . . . . 3 . . . . . . . . . . . . . . . Time 117 | . . . . . . . 117 . . . . . . . . . . . . . . . Parts Recycled . | . . . . . . . . . . . . . . . . . . . . . . . Recycled Matter . | . . . . . . . . . . . . . . . . . . . . . . . Retrieved Matter . | . . . . . . . . . . . . . . . . . . . . . . . Retrieved Components 14 | . 4 . . . . . 10 . . . . . . . . . . . . . . . Parts Scanalyzed . | . . . . . . . . . . . . . . . . . . . . . . . Part Schematics Acquired . | . . . . . . . . . . . . . . . . . . . . . . . Parts Damaged . | . . . . . . . . . . . . . . . . . . . . . . . Bothacking | -11 -10 -10 -10 -9 -8 -8 -8 -7 -7 -6 -6 -5 -5 -5 -5 -5 -4 -3 -3 -2 -2 -2 ------------ Run | Scr Mat Min Exi Min Mat Gar Mat Fac Gar Fac Gar Fac Ext Cet Arc Hub Fac Res Qua Res Tes Sec Used RIF Installer 3 | . . . . . . 1 . . 1 . 1 . . . . . . . . . . . Zone Cloak 1 | . . . . . . . . . 1 . . . . . . . . . . . . . Structural Interface 1 | . . . . . . . . . . . 1 . . . . . . . . . . . Robots Hacked 2 | . . . . . . . 1 . . . . . . . . . . . 1 . . . Non-combat 2 | . . . . . . . 1 . . . . . . . . . . . 1 . . . Combat . | . . . . . . . . . . . . . . . . . . . . . . . Robot Hacks Applied 2 | . . . . . . . 1 . . . . . . . . . . . 1 . . . purge_threat 1 | . . . . . . . . . . . . . . . . . . . 1 . . . map_route 1 | . . . . . . . 1 . . . . . . . . . . . . . . . Relay Couplers Released 18 | . . . . . . 3 . . 7 . 8 . . . . . . . . . . . Machine Destruction 18 | . . . . . . 3 . . 7 . 8 . . . . . . . . . . . Attached 2 | . . . . . . 1 . . . . . . . . . . . . 1 . . . Fabnet Peak Effective % . | . . . . . . . . . . . . . . . . . . . . . . . Robots Rewired 18 | . . . . . . . . . . . . . 18 . . . . . . . . . Allies Hacked 3 | . . . . . . . . . . . . . 2 1 . . . . . . . . Hacks Repelled . | . . . . . . . . . . . . . . . . . . . . . . . Allies | -11 -10 -10 -10 -9 -8 -8 -8 -7 -7 -6 -6 -5 -5 -5 -5 -5 -4 -3 -3 -2 -2 -2 -------- Run | Scr Mat Min Exi Min Mat Gar Mat Fac Gar Fac Gar Fac Ext Cet Arc Hub Fac Res Qua Res Tes Sec Total Allies 52 | . . 2 . . . . . . . . . . 22 5 . . . . . 23 . . Largest Group 13 | . . 2 2 . . . . . . . . . 13 12 3 3 2 . . 10 6 . Highest-Rated Group 603 | . . 46 46 . . . . . . . . . 525 603 288 288 192 . . 141 87 . Highest-Rated Ally 159 | . . 31 31 . . . . . . . . . 159 159 96 96 96 . . 15 15 . Total Orders 8 | . . . . . . . . . . . . . . 2 . . . . . 3 3 . ROAM 1 | . . . . . . . . . . . . . . 1 . . . . . . . . AID 1 | . . . . . . . . . . . . . . 1 . . . . . . . . EXPLORE 5 | . . . . . . . . . . . . . . . . . . . . 3 2 . RETURN 1 | . . . . . . . . . . . . . . . . . . . . . 1 . Ally Attacks 314 | . . . . . . . . . . . . . 98 79 12 28 12 . . 62 23 . Total Damage 7550 | . . . . . . . . . . . . . 1870 2348 366 1071 381 . . 1093 421 . Kills 42 | . . . . . . . . . . . . . 14 9 . 9 3 . . 6 1 . Allies Corrupted 3 | . . . . . . . . . . . . . . . . . . . . 3 . . Allies Melted 1 | . . . . . . . . . . . . . 1 . . . . . . . . . Intel | -11 -10 -10 -10 -9 -8 -8 -8 -7 -7 -6 -6 -5 -5 -5 -5 -5 -4 -3 -3 -2 -2 -2 ------- Run | Scr Mat Min Exi Min Mat Gar Mat Fac Gar Fac Gar Fac Ext Cet Arc Hub Fac Res Qua Res Tes Sec Robot Analysis Total 4 | . . . . . . . 1 . . . . . 3 . . . . . . . . . Derelict Logs Recovered 1 | . . . . 1 . . . . . . . . . . . . . . . . . . Drone Launches 5 | . . . . . . . . . . . . . . . . . . . . 3 2 . Drone Recoveries 4 | . . . . . . . . . . . . . . . . . . . . 2 2 . Exploration | -11 -10 -10 -10 -9 -8 -8 -8 -7 -7 -6 -6 -5 -5 -5 -5 -5 -4 -3 -3 -2 -2 -2 ------------- Run | Scr Mat Min Exi Min Mat Gar Mat Fac Gar Fac Gar Fac Ext Cet Arc Hub Fac Res Qua Res Tes Sec Turns Passed 24813 | 36 1543 268 278 594 1030 628 2899 108 728 1020 1440 704 1750 364 2072 571 1278 1168 2724 1652 1041 917 Spaces Moved 8914 | 19 697 105 159 293 471 231 982 28 242 377 373 319 635 178 110 327 623 399 1047 584 403 312 Core . | . . . . . . . . . . . . . . . . . . . . . . . Treads 6195 | 2 394 . . . . 211 982 28 242 377 4 . . 150 110 327 623 399 1047 584 403 312 Legs 1368 | 17 . . . . . . . . . . 369 319 635 28 . . . . . . . . Wheels 1351 | . 303 105 159 293 471 20 . . . . . . . . . . . . . . . . Hover . | . . . . . . . . . . . . . . . . . . . . . . . Flight . | . . . . . . . . . . . . . . . . . . . . . . . Fastest Speed 115 | 120 115 175 175 175 145 190 236 236 236 235 190 190 190 160 160 160 160 240 152 220 220 160 Average Speed 209 | 124 172 175 175 180 163 231 238 236 236 236 330 197 193 165 160 160 172 240 221 225 220 220 Slowest Speed 680 | 160 320 175 175 190 190 236 240 236 236 240 680 260 260 240 160 160 240 240 240 385 220 250 Overloaded Moves . | . . . . . . . . . . . . . . . . . . . . . . . Propulsion Burnouts . | . . . . . . . . . . . . . . . . . . . . . . . Robots Hopped . | . . . . . . . . . . . . . . . . . . . . . . . Cave-ins Triggered . | . . . . . . . . . . . . . . . . . . . . . . . Teleports 2 | . . . . . . . . . . . . . . . . . . . 1 . 1 . Exploration Rate (%) 45 | 4 78 32 52 69 39 50 92 1 46 10 57 7 84 60 83 30 26 12 99 21 69 16 Regions Visited 22 Branch Regions 10 Pre-discovered Areas . | . . . . . . . . . . . . . . . . . . . . . . . Known Exits Taken 14 | . . . . . 1 . 1 1 . 1 . 1 1 1 1 1 1 1 1 1 1 . Unknown Exits Taken 5 | 1 1 1 1 1 . . . . . . . . . . . . . . . . . . Scrap Searched 2 | . . 1 . 1 . . . . . . . . . . . . . . . . . . Spaces Dug 23 | . . . . . 1 . . . . . . . 1 . . 2 5 1 4 1 5 3 Terrain Destroyed 676 | . . . . 8 39 110 47 . 7 54 109 26 39 2 3 3 61 15 43 30 24 56 Melee 2 | . . . . . 1 . . . . . . . 1 . . . . . . . . . Projectile 188 | . . . . . . . 1 . . 7 2 . 7 2 3 3 18 15 43 30 24 33 AOE 486 | . . . . 8 38 110 46 . 7 47 107 26 31 . . . 43 . . . . 23 Terrain Rammed . | . . . . . . . . . . . . . . . . . . . . . . . Walls Destroyed . | . . . . . . . . . . . . . . . . . . . . . . . Machines Disabled . | . . . . . . . . . . . . . . . . . . . . . . . Actions | -11 -10 -10 -10 -9 -8 -8 -8 -7 -7 -6 -6 -5 -5 -5 -5 -5 -4 -3 -3 -2 -2 -2 --------- Run | Scr Mat Min Exi Min Mat Gar Mat Fac Gar Fac Gar Fac Ext Cet Arc Hub Fac Res Qua Res Tes Sec Total 13301 | 24 892 152 160 338 616 281 1332 45 337 447 488 361 1016 234 1962 352 769 522 1267 782 490 434 Wait 2463 | . 70 23 . 17 28 8 146 . 48 9 10 5 41 12 1778 3 78 48 44 50 16 29 Move 8894 | 18 696 104 158 292 470 230 981 28 241 377 372 318 634 177 109 326 622 398 1046 583 402 312 Hop . | . . . . . . . . . . . . . . . . . . . . . . . Pick Up 208 | . 29 3 . 6 20 2 23 3 3 17 10 6 12 7 . 5 11 9 23 8 3 8 Fast Attach 116 | 1 1 . . 2 5 2 9 . 1 . 7 1 5 6 3 . 6 4 11 28 14 10 Attach 101 | . 2 2 1 2 5 1 6 3 4 12 8 4 9 2 . . 5 6 8 5 2 14 Detach 4 | . . . . . . . . . . . . . . 2 . . . . . 1 1 . Swap 145 | 2 4 1 . 3 7 6 22 . 4 6 7 11 15 2 5 1 5 7 21 6 6 4 Drop 223 | . 12 . 1 5 21 4 34 . 1 3 5 4 13 14 3 5 11 10 28 29 12 8 Fire 868 | 3 77 18 . 11 58 24 111 11 27 23 44 12 60 12 64 12 30 40 86 62 34 49 Melee 3 | . . . . . 2 . . . . . . . 1 . . . . . . . . . Ram 2 | . 1 1 . . . . . . . . . . . . . . . . . . . . Kick . | . . . . . . . . . . . . . . . . . . . . . . . Crush 1 | . . . . . . . . . . . . . . . . . 1 . . . . . Escape Stasis 72 | . . . . . . 4 . . 8 . 25 . 25 . . . . . . 10 . . Rewire 201 | . . . . . . . . . . . . . 201 . . . . . . . . . Trap . | . . . . . . . . . . . . . . . . . . . . . . . Miscellaneous . | . . . . . . . . . . . . . . . . . . . . . . . Route ------- -11/Scrapyard -10/Materials (discovered 3 exits: [*Mat] / [*Min x2]) -10/Mines -10/Exiles -9/Mines -8/Materials (discovered 6 exits: *Fac x3 / *Sto x2 / Gar) -8/Garrison -8/Materials (discovered 4 exits: *Fac x3 / Sto) -7/Factory -7/Garrison -6/Factory -6/Garrison (discovered 2 exits: *Fac x2) -5/Factory (discovered 4 exits: *Upp x2 / *Ext x2) -5/Extension (discovered 2 exits: *Fac / *Cet) -5/Cetus (discovered 2 exits: *Fac / *Arc) -5/Archives (discovered 3 exits: *Fac / *Hub x2) -5/Hub_04(d) -4/Factory (discovered 4 exits: *Res x4) -3/Research (discovered 2 exits: *Arm / *Qua) -3/Quarantine -2/Research (discovered 3 exits: *Acc / *Tes x2) -2/Testing -2/Section 7 History --------- Turn | Location | Event 11 | -11/Scrapyard | Discovered new exit (range 3) 37 | -11/Scrapyard | Entered Materials 302 | -10/Materials | Build established: Mutant 727 | -10/Materials | Discovered new exit (range 14) 857 | -10/Materials | Discovered new exit (range 15) 911 | -10/Materials | Discovered new exit (range 11) 1580 | -10/Materials | Entered Mines 1702 | -10/Mines | Core integrity fell below 50% 1822 | -10/Mines | Deemed a non-threat by the Exiles lab entrance 1822 | -10/Mines | Discovered new exit (range 5) 1848 | -10/Mines | Entered Exiles 1848 | -10/Exiles | Accompanied by 2 allies 1878 | -10/Exiles | Led the pair of lost Derelicts to a safe place 1892 | -10/Exiles | Met 8R-AWN 1918 | -10/Exiles | Met EX-HEX 1971 | -10/Exiles | Met EX-BIN 1993 | -10/Exiles | Met EX-DEC 2107 | -10/Exiles | Discovered new exit (range 12) 2126 | -10/Exiles | Entered Mines 2151 | -9/Mines | Learned location of 1 exit from Materials 2551 | -9/Mines | Met a Derelict shopkeep closing up shop 2709 | -9/Mines | Discovered new exit (range 4) 2720 | -9/Mines | Entered Materials 2720 | -8/Materials | Evolved 4 slots: Power x1, Propulsion x2, Utility x1 2721 | -8/Materials | Identified exit to Factory 2893 | -8/Materials | Discovered new exit (range 9) 3180 | -8/Materials | Discovered new exit (range 13) 3340 | -8/Materials | Discovered exit to Factory (range 16) 3396 | -8/Materials | Build established: Scavenger-Mutant 3670 | -8/Materials | Garrison activated, responded to threat 3697 | -8/Materials | Discovered exit to Factory (range 9) 3740 | -8/Materials | Identified exit to Garrison 3750 | -8/Materials | Entered Garrison 3760 | -8/Garrison | Installed Relay Interface Framework 3846 | -8/Garrison | Triggered checkpoint 3938 | -8/Garrison | Triggered checkpoint 4114 | -8/Garrison | Discovered new exit (range 12) 4214 | -8/Garrison | Triggered checkpoint 4279 | -8/Garrison | Garrison Relay disabled 4378 | -8/Garrison | Entered Materials 4770 | -8/Materials | Identified exit to Storage 5197 | -8/Materials | Repaired Corrupted Imp. Sensor Array 5225 | -8/Materials | Repaired Lgt. Treads 5264 | -8/Materials | Repaired Deuterium Engine 5456 | -8/Materials | Core integrity fell below 50% 5750 | -8/Materials | Discovered exit to Factory (range 9) 6378 | -8/Materials | First assault squad dispatched 6390 | -8/Materials | Discovered exit to Factory (range 14) 6973 | -8/Materials | Discovered exit to Factory (range 16) 7277 | -8/Materials | Entered Factory 7277 | -7/Factory | Evolved 2 slots: Utility x2 7315 | -7/Factory | Garrison activated, responded to threat 7385 | -7/Factory | Identified exit to Garrison 7385 | -7/Factory | Entered Garrison 7397 | -7/Garrison | Expanded RIF knowledge: Zone Cloak 7480 | -7/Garrison | Build established: Mutant 7530 | -7/Garrison | Triggered checkpoint 7573 | -7/Garrison | Garrison Relay disabled 7992 | -7/Garrison | Triggered checkpoint 8041 | -7/Garrison | Garrison Relay disabled 8092 | -7/Garrison | Discovered new exit (range 10) 8113 | -7/Garrison | Entered Factory 8113 | -6/Factory | Evolved 2 slots: Utility x1, Weapon x1 8289 | -6/Factory | Fabricated Fusion Bomb Launcher? 8403 | -6/Factory | Build established: Scavenger-Skirmisher 8843 | -6/Factory | Garrison activated, responded to threat 8913 | -6/Factory | Lost 7 parts (2p2n1u2w) 9093 | -6/Factory | Spotted B-75 Beast 9133 | -6/Factory | Identified exit to Garrison 9133 | -6/Factory | Entered Garrison 9179 | -6/Garrison | Lost 3 parts (2n1w) 9285 | -6/Garrison | Build established: Scavenger-Gunner 9296 | -6/Garrison | Triggered checkpoint 9366 | -6/Garrison | Garrison Relay disabled 9528 | -6/Garrison | Triggered checkpoint 9540 | -6/Garrison | Triggered checkpoint 9540 | -6/Garrison | Triggered checkpoint 9583 | -6/Garrison | Destroyed 11 combat bots 9587 | -6/Garrison | Lost 4 parts (1n1u2w) 9876 | -6/Garrison | Triggered checkpoint 10130 | -6/Garrison | Garrison Relay disabled 10221 | -6/Garrison | Discovered new exit (range 10) 10416 | -6/Garrison | Build established: Scavenger-Mutant 10529 | -6/Garrison | Discovered new exit (range 11) 10552 | -6/Garrison | Identified exit to Factory 10566 | -6/Garrison | Expanded RIF knowledge: Structural Interface 10573 | -6/Garrison | Entered Factory 10573 | -5/Factory | Evolved 2 slots: Utility x2 10756 | -5/Factory | Identified exit to Upper Caves 10756 | -5/Factory | Identified exit to Extension 10878 | -5/Factory | Build established: Scavenger-Skirmisher 11277 | -5/Factory | Entered Extension 11591 | -5/Extension | Lost 3 parts (1p2w) 11758 | -5/Extension | Build established: Scavenger-Tank 11883 | -5/Extension | Rescued a captive Derelict 11888 | -5/Extension | Rescued a captive Derelict 12252 | -5/Extension | Spotted B-75 Beast 12274 | -5/Extension | Destroyed B-75 Beast 12276 | -5/Extension | Spotted B-75 Beast 12299 | -5/Extension | Destroyed B-75 Beast 12413 | -5/Extension | Rescued a captive Derelict 12437 | -5/Extension | Rescued a captive Derelict 12668 | -5/Extension | Rescued A7 12952 | -5/Extension | Disrupted transfer network 12962 | -5/Extension | P-70 Sage assimilated allied Z0-JEE(g) 12974 | -5/Extension | Discovered new exit (range 10) 12979 | -5/Extension | Discovered new exit (range 6) 12981 | -5/Extension | Disrupted transfer network 13017 | -5/Extension | Identified exit to Cetus 13027 | -5/Extension | Entered Cetus 13027 | -5/Cetus | Accompanied by 10 allies (A7) 13032 | -5/Cetus | Acquired a Cetus Manufacturing Module code from A7 13036 | -5/Cetus | Lost 4 parts (1p2u1w) 13046 | -5/Cetus | Spotted Cetus Guard 13046 | -5/Cetus | Spotted Cetus Guard 13047 | -5/Cetus | Spotted Cetus Guard 13051 | -5/Cetus | Allies destroyed Cetus Guard 13055 | -5/Cetus | Spotted Cetus Guard 13068 | -5/Cetus | Destroyed Cetus Guard 13070 | -5/Cetus | Allies destroyed Cetus Guard 13075 | -5/Cetus | Allies destroyed Cetus Guard 13144 | -5/Cetus | Started Cetus Manufacturing Module 13154 | -5/Cetus | Discovered new exit (range 21) 13169 | -5/Cetus | Manufactured an Enhanced Grunt 13194 | -5/Cetus | Manufactured an Enhanced Grunt 13195 | -5/Cetus | Spotted Cetus Guard 13195 | -5/Cetus | Spotted Cetus Guard 13198 | -5/Cetus | Spotted Cetus Guard 13202 | -5/Cetus | Spotted Cetus Guard 13209 | -5/Cetus | Destroyed Cetus Guard 13212 | -5/Cetus | Destroyed Cetus Guard 13219 | -5/Cetus | Manufactured an Enhanced Grunt 13223 | -5/Cetus | Allies destroyed Cetus Guard 13227 | -5/Cetus | Destroyed Cetus Guard 13235 | -5/Cetus | Discovered new exit (range 21) 13238 | -5/Cetus | Extracted ID and sensor layout for unrecognized location from A7's data core 13244 | -5/Cetus | Manufactured an Enhanced Grunt 13261 | -5/Cetus | Met Revision 17 13269 | -5/Cetus | Manufactured an Enhanced Grunt 13372 | -5/Cetus | Found Prototype Device 13372 | -5/Cetus | Identified Exp. Thermal Shield 13389 | -5/Cetus | Identified exit to Archives 13391 | -5/Cetus | Entered Archives 13391 | -5/Archives | Accompanied by 3 allies 13430 | -5/Archives | Discovered new exit (range 22) 13565 | -5/Archives | Discovered new exit (range 18) 13598 | -5/Archives | Discovered new exit (range 22) 13735 | -5/Archives | Build established: Scavenger-Mutant 13850 | -5/Archives | Identified exit to Hub_04(d) 14098 | -5/Archives | Build established: Scavenger-Gunner 15463 | -5/Archives | Entered Hub_04(d) 15463 | -5/Hub_04(d) | Accompanied by 3 allies 15533 | -5/Hub_04(d) | Disrupted transfer network 15554 | -5/Hub_04(d) | Found Exp. Thermal Shield 15595 | -5/Hub_04(d) | Discovered new exit (range 10) 15757 | -5/Hub_04(d) | Build established: Scavenger-Skirmisher 16029 | -5/Hub_04(d) | Identified exit to Factory 16034 | -5/Hub_04(d) | Entered Factory 16034 | -4/Factory | Accompanied by 2 allies 16034 | -4/Factory | Evolved 2 slots: Utility x2 16063 | -4/Factory | Spotted B-86 Titan 16639 | -4/Factory | Spotted B-86 Titan 16891 | -4/Factory | Identified exit to Research 17312 | -4/Factory | Entered Research 17312 | -3/Research | Evolved 2 slots: Power x1, Utility x1 17396 | -3/Research | Discovered new exit (range 22) 17479 | -3/Research | Identified exit to Armory 17621 | -3/Research | Build established: Scavenger-Tank 18309 | -3/Research | Found Prototype Launcher 18309 | -3/Research | Identified Com. Tesla Bomb Launcher 18439 | -3/Research | Discovered new exit (range 9) 18478 | -3/Research | Identified exit to Quarantine 18480 | -3/Research | Entered Quarantine 18484 | -3/Quarantine | Spotted Alpha 7 18519 | -3/Quarantine | Destroyed Alpha 7 18551 | -3/Quarantine | Found Alien Artifact 18552 | -3/Quarantine | Identified Phase Redirector 18608 | -3/Quarantine | Found Alien Launcher 19507 | -3/Quarantine | System corruption reached 10% 19852 | -3/Quarantine | Build established: Scavenger-Skirmisher 19903 | -3/Quarantine | Found Alien Artifact 20113 | -3/Quarantine | Discovered new exit (range 13) 20159 | -3/Quarantine | Identified exit to Research 20289 | -3/Quarantine | Found Alien Energy Cannon 20693 | -3/Quarantine | Found Alien Artifact 20693 | -3/Quarantine | Identified Core Reset Matrix 20693 | -3/Quarantine | Identified Phase Armor 20693 | -3/Quarantine | Identified Core Cannon 20693 | -3/Quarantine | Identified Sigix Terminator 20693 | -3/Quarantine | Used Core Reset Matrix 20697 | -3/Quarantine | Detected hypermatrix surge 20697 | -3/Quarantine | Sensed 8 artifacts in vicinity 20788 | -3/Quarantine | Found Dimensional Node Initializer 20791 | -3/Quarantine | Found Dimensional Node Initializer 20809 | -3/Quarantine | Found Hpw. Transdimensional Reconstructor 20813 | -3/Quarantine | Found Hpw. Transdimensional Reconstructor 20985 | -3/Quarantine | Discovered exit to Research (range 5) 21003 | -3/Quarantine | Initialized slip node 21178 | -3/Quarantine | Met incapacitated Sigix Warrior 21178 | -3/Quarantine | Lockdown squad dispatched 21185 | -3/Quarantine | Acquired the access code to the Sigix quarantine chamber 21189 | -3/Quarantine | Unlocked Sigix quarantine chamber 21203 | -3/Quarantine | Warped through subspace to slip node 21204 | -3/Quarantine | Entered Research 21204 | -2/Research | Evolved 2 slots: Utility x2 21498 | -2/Research | Build established: Scavenger-Tank 21589 | -2/Research | Discovered new exit (range 7) 21701 | -2/Research | Identified exit to Access 21810 | -2/Research | Identified exit to Testing 21894 | -2/Research | Found Prototype Device 21894 | -2/Research | Identified Exp. Force Field 22289 | -2/Research | Core integrity fell below 50% 22319 | -2/Research | System corruption reached 10% 22332 | -2/Research | Emitted hypermatrix ping 22337 | -2/Research | Assembled emerged from beneath the floor 22490 | -2/Research | Assembled emerged from beneath the floor 22493 | -2/Research | Found Unknown Launcher 22493 | -2/Research | Identified Fusion Bomb Launcher 22768 | -2/Research | Found Unknown Protection 22768 | -2/Research | Identified Powered Armor 22828 | -2/Research | Assembled emerged from beneath the floor 22856 | -2/Research | Entered Testing 22856 | -2/Testing | Accompanied by 6 allies 22893 | -2/Testing | Found Prototype Energy Cannon 22893 | -2/Testing | Identified Cld. Nova Cannon 23047 | -2/Testing | Warped through subspace 23051 | -2/Testing | Found Prototype Hackware 23064 | -2/Testing | Found Prototype Device 23064 | -2/Testing | Identified Adv. EM Disruption Field 23077 | -2/Testing | Found Prototype Device 23077 | -2/Testing | Identified Exp. Shock Absorption System 23659 | -2/Testing | Spotted Fortress 23884 | -2/Testing | Discovered new exit (range 6) 23893 | -2/Testing | Identified exit to Section 7 23897 | -2/Testing | Entered Section 7 23898 | -2/Section 7 | Sensed 22 artifacts in vicinity 23930 | -2/Section 7 | Found Integrated Dissipator 23930 | -2/Section 7 | Installed Integrated Dissipator, increased core heat dissipation (+20) 24121 | -2/Section 7 | Spotted B-90 Cyclops 24353 | -2/Section 7 | Core integrity fell below 20% 24409 | -2/Section 7 | Lost 7 parts (1p1n5u) 24754 | -2/Section 7 | Found Integrated Dissipator 24754 | -2/Section 7 | Installed Integrated Dissipator, increased core heat dissipation (+20) 24814 | -2/Section 7 | Fired Sigix Terminator 24814 | -2/Section 7 | Destroyed self with Sigix Terminator Last Messages --------------- 24808_ G-73 Enforcer emerges from a hatch in the floor. 24811_ Adv. Heavy Siege Treads destroyed. 24812_ P-80 Master resets G-73 Enforcer, system corruption cleaned. 24812_ U-05 Engineer lays Concrete. 24812_ Dropped Imp. Matter Neutralizer. 24813_ Dropped Matter Neutralizer. 24814_ U-05 Engineer lays Concrete. 24814_ Sigix Terminator expended. 24814_ Destroyed Unknown Energy Gun. 24814_ Destroyed Lgt. Quantum Reactor. 24814_ G-73 Enforcer destroyed. 24814_ Destroyed Unknown Wheel. 24814_ Destroyed Unknown Special Weapon. 24814_ U-05 Engineer destroyed. 24814_ Destroyed Unknown Leg. 24814_ L-61 Swordsman destroyed. 24814_ Destroyed Unknown Leg. 24814_ Destroyed Unknown Energy Gun. 24814_ G-73 Enforcer destroyed. [Achievement: I Was Wrong!] Map ----- +----------------------------------------------------+ | ?????????????????????????????????????????????????? | | ?????????????????????????????????????????????????? | | ?????????????????? ???????????????????????????? | | ?????????????????# ???????????????????????????? | | ?????????????????# ???????????????????????????? | | ?????????????????# ???????????????????????????? | | ?????????????????# #??????????????????????????? | | ?????????????????# #??????????????????????????? | | ?????????????????# #??????????????????????????? | | ?????????????????+ #??????????????????????????? | | ?????????????????# #??????????????????????????? | | #### #???????????# #??????????????????????????? | | #???????????# #??????????????????????????? | | ?????????????????# #??????????????????????????? | | ?????????????????# #??????????????????????????? | | ?????????????????# #??????????????????????????? | | ?????????????????+ #??????????????????????????? | | ?????????????????# #??????????????????????????? | | ?????????????????# #??????????????????????????? | | ?????????????????# ########???????????????????? | | ?????????????????# #???????????????????? | | ?###?????????????# #???????????????????? | | ?? #??????????# p #???????????????????? | | ?? ???????????# g g #???????????????????? | | ?? = ??????#########"### #???????????????????? | | ?? ???????# * #@ #???????????????????? | | ?? ???????# "" !%"" # #???????????????????? | | ??# #???????# " "%!*" # ?????????????????? | | ??# #???????# ==[=! "" # ??????????????? | | ### ##??????#%]%*% # ????????????? | | ########]==%="""" # ?????????? | | =]]"%]![! ######## #####????????? | | ######""*################## #????????????? | | #?#### =#???# #? #????????????? | | [######""##### = """ #?? #????????????? | | %= % % % " """ #??? #????????????? | | #+########!##### "" "" """ #????+????????????? | | #???????##%#???# ""T"" +????????!????????? | | #????????#=#???# """ #?????????????????? | | #????????# #???###############?????????????????? | | #????????#=##??????????????????????????????????? | | #????????#%#########???????????????????????????? | | #???????## ## """ #???????????????????????????? | | # #?????#### ## "R" #???????????????????????????? | | # #########=% # " " #???????????????????????????? | | # [% %+% #???????????????????????????? | | ###########% #[ #???????????????????????????? | | #??????######## #???????????????????????????? | | #???????????#?## #####???????????????????????????? | | #???????????????##???????????????????????????????? | +----------------------------------------------------+ Best States ------------- Heat Dissipation 127 Coolant Potential 120 Energy Generation 65 Energy Capacity 1350 Matter Stores 300 Matter Capacity 300 Sight Range 22 Robot Scan Range 16 Terrain Scan Density 10 Armor Coverage 400 Resistance: KI 25 Resistance: TH 30 Resistance: EX 75 Resistance: EM 50 Utility Shielding 66 Weapon Cycling 20 Evasion (%) 55 Targeting Accuracy 13 Launcher Accuracy 40 Recoil Reduction 4 Particle Charging 25 Offensive Hacking 10 Relay Coupler Types 1 Relay Coupler Value 25 Item Schematics ----------------- None Robot Schematics ------------------ None Fabricated ------------ Fusion Bomb Launcher | x1 | -6/Factory | Preloaded Alien Tech Used ----------------- Phase Redirector Core Reset Matrix Dimensional Node Initializer High-powered Transdimensional Reconstructor Phase Armor Integrated Dissipator Sigix Terminator Achievements -------------- I Was Wrong! Short-term Sacrifices Challenges ------------ None Game ------ Seed IonSpacefoldDiverter Manual? 0 Play Time 02:40:43 Cumulative 264.3 hours Start 2022.04.24 @ 14:23:58 End 2022.04.24 @ 17:48:28 Sessions 1 Manual Loads 0 Difficulty Rogue Special Mode None Game No. 196 Rogue 168 Adventurer 10 Explorer 18 Win Type - Total 33 Types 14/1/3/9/1/0/1/1/3 Lore% 75 Gallery% 84 Achievement% 73 Wizard Run 0 Options --------- ASCII 0 Keyboard 0 Movement Mouse Keybinds 0 Fullscreen 1 Font 18/SmallcapsGlow Map View 76x50 Tactical HUD 1 Map Filters NONE Filters NONE Steam 1 RUN: 8cb497f7-00b5-4dd2-9370-85a14cd24190